Workbook

Sheet Sheet1
B1: Going Around In Circles
B2: (The Hypocycloid)
B4: This graphing utility lets you investigate
B5: the path traced out by a fixed point
B6: on a small circle as it rolls around
B7: the inside rim of a larger, fixed circle.
A10: What is the radius R of the larger fixed circle?
C11: (R is between 3 and 12) | E11: =F11 -> 10 | F11: 10.00
A14: What is the radius r of the smaller rolling circle?
C15: (r is between 1 and 6) | E15: =F15 -> 2 | F15: 2.00
A22: Click each item below for suggestions and investigations | I22: Now trace along the hypocycloid: q = | N22: =dQ* L23 -> 3.36 | O22: radians
B23: Item 1 | L23: 21
B24: Item 2 | L24: then: | M24: x = | N24: =LOOKUP(N22,Sheet2!C3:C1004,Sheet2!H3:H1004) -> -6.51
B25: Item 3 | M25: y = | N25: =LOOKUP(N22,Sheet2!C3:C1004,Sheet2!I3:I1004) -> -3.22
A29: To access/download all the DIGMath Apps for Calculus
A30: Click this link: | C30: DIGMath for Calculus
A32: Created by: Sheldon P. Gordon
A33: Farmingdale State College
A34: Development of this module was supported by the
A35: NSF's Division of Undergraduate Education
A36: under grants DUE-0310123 and DUE-0442160.

Sheet Sheet2
C1: Q | D1: r = f(Q) | E1: r = g(Q) | F1: x1 | G1: y1 | H1: x2 | I1: y2
C3: =Sheet2!A6 -> 0.000 | D3: =r0 -> 10 | E3: =SIN(2*Q) -> 0 | F3: =D3*COS($C3) -> 10 | G3: =D3*SIN($C3) -> 0 | H3: =(r0-r00)*COS($C3)+r00*COS((r0-r00)*$C3/r00) -> 10 | I3: =(r0-r00)*SIN($C3)-r00*SIN((r0-r00)*$C3/r00) -> 0
C4: =C3+Sheet2!B$12 -> 0.160 | D4: =D3 -> 10 | E4: 0.3142630927 | F4: =D4*COS(C4) -> 9.872527362 | G4: =D4*SIN(C4) -> 1.59160406 | H4: 9.502976724 | I4: 0.07991826634
C5: =C4+Sheet2!B$12 -> 0.320 | D5: =D4 -> 10 | E5: 0.5966824909 | F5: 9.493359303 | G5: 3.142630927 | H5: 8.170567463 | I5: 0.5988078447
A6: 0 | B6: Qmin | C6: =C5+Sheet2!B$12 -> 0.480 | D6: 10 | E6: 0.8186411625 | F6: 8.872162534 | G6: 4.613537902 | H6: 6.417036615 | I6: 1.81023029
A7: 160 | B7: Qmax | C7: =C6+Sheet2!B$12 -> 0.639 | D7: 10 | E7: 0.9576484483 | F7: 8.024774172 | G7: 5.966824909 | H7: 4.751457135 | I7: 3.670478711
C8: =C7+Sheet2!B$12 -> 0.799 | D8: 10 | E8: 0.9996189987 | F8: 6.972797983 | G8: 7.167990533 | H8: 3.581285817 | I8: 5.844757424
C9: =C8+Sheet2!B$12 -> 0.959 | D9: 10 | E9: 0.9403000158 | F9: 5.743053605 | G9: 8.186411625 | H9: 3.057786405 | I9: 7.829241352
C10: =C9+Sheet2!B$12 -> 1.119 | D10: 10 | E10: 0.785702182 | F10: 4.366892787 | G10: 8.99612402 | H10: 3.024202555 | I10: 9.141056245
C11: =C10+Sheet2!B$12 -> 1.279 | D11: 10 | E11: 0.5514906079 | F11: 2.879400102 | G11: 9.576484483 | H11: 3.086952519 | I11: 9.501359757
A12: delta Q = | B12: =(Sheet2!A7-Sheet2!A6)/1001 -> 0.1598401598 | C12: =C11+Sheet2!B$12 -> 1.439 | D12: 10 | E12: 0.2613975166 | F12: 1.31849847 | G12: 9.912696998 | H12: 2.78148413 | I12: 8.939393791
C13: =C12+Sheet2!B$12 -> 1.598 | D13: 10 | E13: -0.05518249865 | F13: -0.2760176564 | G13: 9.996189987 | H13: 1.767005442 | I13: 7.776558324
C14: =C13+Sheet2!B$12 -> 1.758 | D14: 10 | E14: -0.366170974 | F14: -1.863496843 | G14: 9.824834834 | H14: -0.02712220349 | I14: 6.496909797
C15: =C14+Sheet2!B$12 -> 1.918 | D15: 10 | E15: -0.6400560259 | F15: -3.403467059 | G15: 9.403000158 | H15: -2.361460512 | I15: 5.555307648
C16: =C15+Sheet2!B$12 -> 2.078 | D16: 10 | E16: -0.8490853915 | F16: -4.856667489 | G16: 8.741440436 | H16: -4.769118 | I16: 5.199015836
C17: =C16+Sheet2!B$12 -> 2.238 | D17: 10 | E17: -0.9720785143 | F17: -6.186049477 | G17: 7.85702182 | H17: -6.728586133 | I17: 5.373201864
C18: =C17+Sheet2!B$12 -> 2.398 | D18: 10 | E18: -0.9965727299 | F18: -7.357721055 | G18: 6.772292143 | H18: -7.858805668 | I18: 5.747584413
C19: =C18+Sheet2!B$12 -> 2.557 | D19: 10 | E19: -0.920086085 | F19: -8.341811011 | G19: 5.514906079 | H19: -8.059682424 | I19: 5.853575432
C20: =C19+Sheet2!B$12 -> 2.717 | D20: 10 | E20: -0.7503688291 | F20: -9.113230436 | G20: 4.116920089 | H20: -7.542797868 | I20: 5.277569423
C21: =C20+Sheet2!B$12 -> 2.877 | D21: 10 | E21: -0.5046180959 | F21: -9.652312357 | G21: 2.613975166 | H21: -6.740407576 | I21: 3.833813483
C22: =C21+Sheet2!B$12 -> 3.037 | D22: 10 | E22: -0.2077353499 | F22: -9.945313134 | G22: 1.044388181 | H22: -6.128866409 | I22: 1.648325014
C23: =C22+Sheet2!B$12 -> 3.197 | D23: 10 | E23: 0.1101968325 | F23: -9.984762851 | G23: -0.5518249865 | H23: -6.036383648 | I23: -0.8795628291
C24: =C23+Sheet2!B$12 -> 3.357 | D24: 10 | E24: 0.416962975 | F24: -9.769655756 | G24: -2.133969637 | H24: -6.511157095 | I24: -3.223125449
C25: =C24+Sheet2!B$12 -> 3.516 | D25: 10 | E25: 0.681479035 | F25: -9.305475903 | G25: -3.66170974 | H25: -7.302035423 | I25: -4.924295815
C26: =C25+Sheet2!B$12 -> 3.676 | D26: 10 | E26: 0.8769420924 | F26: -8.604057338 | G26: -5.096096283 | H26: -7.959355604 | I26: -5.762696661
C27: =C26+Sheet2!B$12 -> 3.836 | D27: 10 | E27: 0.9835462392 | F27: -7.683282396 | G27: -6.400560259 | H27: -8.016078735 | I27: -5.831184557
C28: =C27+Sheet2!B$12 -> 3.996 | D28: 10 | E28: 0.9904894756 | F28: -6.566625799 | G28: -7.541844974 | H28: -7.177578244 | I28: -5.488356086
C29: =C28+Sheet2!B$12 -> 4.156 | D29: 10 | E29: 0.8970682564 | F29: -5.28255618 | G29: -8.490853915 | H29: -5.44497077 | I29: -5.207053973
C30: =C29+Sheet2!B$12 -> 4.316 | D30: 10 | E30: 0.7127487799 | F30: -3.863810286 | G30: -9.223392547 | H30: -3.123091522 | I30: -5.378970747
C31: =C30+Sheet2!B$12 -> 4.476 | D31: 10 | E31: 0.4562077957 | F31: -2.346558375 | G31: -9.720785143 | H31: -0.709748911 | I31: -6.152759612
C32: =C31+Sheet2!B$12 -> 4.635 | D32: 10 | E32: 0.1534401244 | F32: -0.7694820658 | G32: -9.970350914 | H32: 1.29023886 | I32: -7.369788418
C33: =C32+Sheet2!B$12 -> 4.795 | D33: 10 | E33: -0.1648753493 | F33: 0.8272118246 | G33: -9.965727299 | H33: 2.553033937 | I33: -8.623057572
C34: =C33+Sheet2!B$12 -> 4.955 | D34: 10 | E34: -0.4664843105 | F34: 2.40281634 | G34: -9.707032174 | H34: 3.051822625 | I34: -9.416102224
C35: =C34+Sheet2!B$12 -> 5.115 | D35: 10 | E35: -0.7208252845 | F35: 3.917162189 | G35: -9.20086085 | H35: 3.055373388 | I35: -9.359153161
C36: =C35+Sheet2!B$12 -> 5.275 | D36: 10 | E36: -0.9021263737 | F36: 5.331641838 | G36: -8.460117926 | H36: 3.009985494 | I36: -8.325063085
C37: =C36+Sheet2!B$12 -> 5.435 | D37: 10 | E37: -0.9920166759 | F37: 6.610193797 | G37: -7.503688291 | H37: 3.351766696 | I37: -6.503350666
C38: =C37+Sheet2!B$12 -> 5.594 | D38: 10 | E38: -0.9813877741 | F38: 7.720221988 | G38: -6.355955669 | H38: 4.323689737 | I38: -4.330915242
C39: =C38+Sheet2!B$12 -> 5.754 | D39: 10 | E39: -0.8713166752 | F39: 8.633426766 | G39: -5.046180959 | H39: 5.869970419 | I39: -2.326650668
C40: =C39+Sheet2!B$12 -> 5.914 | D40: 10 | E40: -0.6729566788 | F40: 9.326526408 | G40: -3.60775625 | H40: 7.649738361 | I40: -0.8951095093
C41: =C40+Sheet2!B$12 -> 6.074 | D41: 10 | E41: -0.4064072342 | F41: 9.781850665 | G41: -2.077353499 | H41: 9.164813172 | I41: -0.1765585657
C42: =C41+Sheet2!B$12 -> 6.234 | D42: 10 | E42: -0.09867730078 | F42: 9.987791261 | G42: -0.4939896029 | H42: 9.95128417 | I42: -0.002408863224
C43: =C42+Sheet2!B$12 -> 6.394 | D43: 10 | E43: 0.2190514199 | F43: 9.939097837 | G43: 1.101968325 | H43: 9.759344171 | I43: 0.02664911066
C44: =C43+Sheet2!B$12 -> 6.553 | D44: 10 | E44: 0.5145840678 | F44: 9.637011809 | G44: 2.669832091 | H44: 8.650422396 | I44: 0.3709659604
C45: =C44+Sheet2!B$12 -> 6.713 | D45: 10 | E45: 0.7579748696 | F45: 9.089234718 | G45: 4.16962975 | H45: 6.973284162 | I45: 1.358045023
C46: =C45+Sheet2!B$12 -> 6.873 | D46: 10 | E46: 0.9245614881 | F46: 8.309731881 | G46: 5.563124667 | H46: 5.228529724 | I46: 3.041346432
C47: =C46+Sheet2!B$12 -> 7.033 | D47: 10 | E47: 0.9974640113 | F47: 7.318376356 | G47: 6.81479035 | H47: 3.874963269 | I47: 5.167863653
C48: =C47+Sheet2!B$12 -> 7.193 | D48: 10 | E48: 0.9692953622 | F48: 6.140442283 | G48: 7.892716172 | H48: 3.15421983 | I48: 7.267569418
C49: =C48+Sheet2!B$12 -> 7.353 | D49: 10 | E49: 0.8429098175 | F49: 4.805960535 | G49: 8.769420924 | H49: 3.002780586 | I49: 8.829663657
C50: =C49+Sheet2!B$12 -> 7.512 | D50: 10 | E50: 0.6311137893 | F50: 3.348953094 | G50: 9.422553432 | H50: 3.085944015 | I50: 9.496238032
C51: =C50+Sheet2!B$12 -> 7.672 | D51: 10 | E51: 0.3553681752 | F51: 1.806565675 | G51: 9.835462392 | H51: 2.940106381 | I51: 9.197057987
C52: =C51+Sheet2!B$12 -> 7.832 | D52: 10 | E52: 0.04361376503 | F52: 0.2181207186 | G52: 9.997620885 | H52: 2.166887933 | I52: 8.172385768
C53: =C52+Sheet2!B$12 -> 7.992 | D53: 10 | E53: -0.2725599468 | F53: -1.375885123 | G53: 9.904894756 | H53: 0.6021362034 | I53: 6.874953802
C54: =C53+Sheet2!B$12 -> 8.152 | D54: 10 | E54: -0.5611156663 | F54: -2.934813423 | G54: 9.559648015 | H54: -1.607253902 | I54: 5.789892713
C55: =C54+Sheet2!B$12 -> 8.312 | D55: 10 | E55: -0.7928145794 | F55: -4.418920042 | G55: 8.970682564 | H55: -4.049355863 | I55: 5.243781718
C56: =C55+Sheet2!B$12 -> 8.472 | D56: 10 | E56: -0.9441790663 | F56: -5.790368381 | G56: 8.153013799 | H56: -6.198191142 | I56: 5.278237278
C57: =C56+Sheet2!B$12 -> 8.631 | D57: 10 | E57: -0.9998716452 | F57: -7.014194015 | G57: 7.127487799 | H57: -7.610328439 | I57: 5.637911879
C58: =C57+Sheet2!B$12 -> 8.791 | D58: 10 | E58: -0.9542490907 | F58: -8.059196085 | G58: 5.920249865 | H58: -8.089722176 | I58: 5.877530779
C59: =C58+Sheet2!B$12 -> 8.951 | D59: 10 | E59: -0.8119342513 | F59: -8.898732759 | G59: 4.562077957 | H59: -7.755935121 | I59: 5.545525251
C60: =C59+Sheet2!B$12 -> 9.111 | D60: 10 | E60: -0.5873476249 | F60: -9.511400445 | G60: 3.087598027 | H60: -6.989029286 | I60: 4.371521838
C61: =C60+Sheet2!B$12 -> 9.271 | D61: 10 | E61: -0.3032461566 | F61: -9.88157947 | G61: 1.534401244 | H61: -6.273096502 | I61: 2.383388912
C62: =C61+Sheet2!B$12 -> 9.431 | D62: 10 | E62: 0.0115826806 | F62: -9.999832295 | G62: -0.05791437425 | H62: -6.00040247 | I62: -0.09265911386
C63: =C62+Sheet2!B$12 -> 9.590 | D63: 10 | E63: 0.3252378663 | F63: -9.863144119 | G63: -1.648753493 | H63: -6.313633974 | I63: -2.54922444
C64: =C63+Sheet2!B$12 -> 9.750 | D64: 10 | E64: 0.6059373041 | F64: -9.474999744 | G64: -3.197558419 | H64: -7.048639862 | I64: -4.486169299
C65: =C64+Sheet2!B$12 -> 9.910 | D65: 10 | E65: 0.8252382424 | F65: -8.845294727 | G65: -4.664843105 | H65: -7.800308408 | I65: -5.596202468
C66: =C65+Sheet2!B$12 -> 10.070 | D66: 10 | E66: 0.960919325 | F66: -7.990083099 | G66: -6.01319982 | H66: -8.085530276 | I66: -5.874599502
C67: =C66+Sheet2!B$12 -> 10.230 | D67: 10 | E67: =SIN(2*Q) -> 0.9992322403 | F67: -6.931168077 | G67: -7.208252845 | H67: =(r0-r00)*COS($C67)+r00*COS((r0-r00)*$C67/r00) -> -7.538794742 | I67: =(r0-r00)*SIN($C67)-r00*SIN((r0-r00)*$C67/r00) -> -5.610009867
C68: =C67+Sheet2!B$12 -> 10.390 | D68: 10 | E68: 0.9362948119 | F68: =D68*COS(C68) -> -5.6955462 | G68: =D68*SIN(C68) -> -8.21953487 | H68: -6.063028859 | I68: -5.260264506
C69: =C68+Sheet2!B$12 -> 10.549 | D69: =D68 -> 10 | E69: 0.7784843724 | F69: -4.314719063 | G69: -9.021263737 | H69: -3.875926922 | I69: -5.262504566
C70: =C69+Sheet2!B$12 -> 10.709 | D70: 10 | E70: 0.5417915598 | F70: -2.823890202 | G70: -9.592999746 | H70: -1.433264539 | I70: -5.852868654
C71: =C70+Sheet2!B$12 -> 10.869 | D71: 10 | E71: 0.2502000166 | F71: -1.261067594 | G71: -9.920166759 | H71: 0.7407457315 | I71: -6.967164617
C72: =C71+Sheet2!B$12 -> 11.029 | D72: 10 | E72: -0.06674382882 | F72: 0.3339053362 | G72: -9.994423807 | H72: 2.249305314 | I72: -8.261919044
C73: =C72+Sheet2!B$12 -> 11.189 | D73: 10 | E73: -0.3769246462 | F73: 1.920365508 | G73: -9.813877741 | H73: 2.96800365 | I73: -9.24759885
C74: =C73+Sheet2!B$12 -> 11.349 | D74: 10 | E74: -0.6489123905 | F74: 3.457866868 | G74: -9.383131499 | H74: 3.081944332 | I74: -9.481439261
C75: =C74+Sheet2!B$12 -> 11.508 | D75: 10 | E75: -0.8551470497 | F75: 4.907211546 | G75: -8.713166752 | H75: 3.00066333 | I75: -8.743716715
C76: =C75+Sheet2!B$12 -> 11.668 | D76: 10 | E76: -0.9747312494 | F76: 6.231449184 | G76: -7.821063935 | H76: 3.184755312 | I76: -7.127796217
C77: =C76+Sheet2!B$12 -> 11.828 | D77: 10 | E77: -0.9955477453 | F77: 7.396818968 | G77: -6.729566788 | H77: 3.952993922 | I77: -5.008297615
C78: =C77+Sheet2!B$12 -> 11.988 | D78: 10 | E78: -0.9154872404 | F78: 8.373610348 | G78: -5.466502514 | H78: 5.346420729 | I78: -2.899827813
C79: =C78+Sheet2!B$12 -> 12.148 | D79: 10 | E79: -0.7426621169 | F79: 9.136920488 | G79: -4.064072342 | H79: 7.103348311 | I79: -1.261914646
C80: =C79+Sheet2!B$12 -> 12.308 | D80: 10 | E80: -0.4945844229 | F80: 9.667289156 | G80: -2.558030565 | H80: 8.755376319 | I80: -0.3269926204
C81: =C80+Sheet2!B$12 -> 12.468 | D81: 10 | E81: -0.1963914095 | F81: 9.951194854 | G81: -0.9867730078 | H81: 9.806677541 | I81: -0.01915120271
C82: =C81+Sheet2!B$12 -> 12.627 | D82: 10 | E82: 0.1217015799 | F82: 9.981399541 | G82: 0.6096418614 | H82: 9.925874535 | I82: 0.004525729349
C83: =C82+Sheet2!B$12 -> 12.787 | D83: 10 | E83: 0.4274627747 | F83: 9.757133162 | G83: 2.190514199 | H83: 9.074808835 | I83: 0.206649625
C84: =C83+Sheet2!B$12 -> 12.947 | D84: 10 | E84: 0.6899099619 | F84: 9.284113283 | G84: 3.715540413 | H84: 7.523387604 | I84: 0.9747423214
C85: =C84+Sheet2!B$12 -> 13.107 | D85: 10 | E85: 0.8824498564 | F85: 8.574399321 | G85: 5.145840678 | H85: 5.744648461 | I85: 2.45623204
C86: =C85+Sheet2!B$12 -> 13.267 | D86: 10 | E86: 0.9855727487 | F86: 7.646085099 | G86: 6.444950167 | H86: 4.231453507 | I86: 4.488718131
C87: =C86+Sheet2!B$12 -> 13.427 | D87: 10 | E87: 0.9888293883 | F87: 6.52283755 | G87: 7.579748696 | H87: 3.307135803 | I87: 6.653346181
C88: =C87+Sheet2!B$12 -> 13.586 | D88: 10 | E88: 0.8918897858 | F88: 5.233293339 | G88: 8.521305113 | H88: 3.004765112 | I88: 8.430482761
C89: =C88+Sheet2!B$12 -> 13.746 | D89: 10 | E89: 0.7045766507 | F89: 3.810328787 | G89: 9.245614881 | H89: 3.062550003 | I89: 9.396440875
C90: =C89+Sheet2!B$12 -> 13.906 | D90: 10 | E90: 0.4458700747 | F90: 2.290221703 | G90: 9.734212066 | H90: 3.036976868 | I90: 9.38375875
C91: =C90+Sheet2!B$12 -> 14.066 | D91: 10 | E91: 0.1419843135 | F91: 0.7117264978 | G91: 9.974640113 | H91: 2.488743017 | I91: 8.54189552
C92: =C91+Sheet2!B$12 -> 14.226 | D92: 10 | E92: -0.176288454 | F92: -0.8849138379 | G92: 9.960769423 | H92: 1.167758454 | I92: 7.274505454
C93: =C92+Sheet2!B$12 -> 14.386 | D93: 10 | E93: -0.4766982404 | F93: -2.458993713 | G93: 9.692953622 | H93: -0.8761598203 | I93: 6.078164132
C94: =C93+Sheet2!B$12 -> 14.545 | D94: 10 | E94: -0.7288050811 | F94: -3.970382706 | G94: 9.178020547 | H94: -3.30093355 | I94: 5.346303211
C95: =C94+Sheet2!B$12 -> 14.705 | D95: 10 | E95: -0.907063459 | F95: -5.380548667 | G95: 8.429098175 | H95: -5.595495408 | I95: 5.215805732
C96: =C95+Sheet2!B$12 -> 14.865 | D96: 10 | E96: -0.9934107842 | F96: -6.653540081 | G96: 7.465279927 | H96: -7.27029201 | I96: 5.5168123
C97: =C96+Sheet2!B$12 -> 15.025 | D97: 10 | E97: -0.9790976431 | F97: -7.756902635 | G97: 6.311137893 | H97: -8.040050887 | I97: 5.845468008
C98: =C97+Sheet2!B$12 -> 15.185 | D98: 10 | E98: -0.8655743596 | F98: -8.662506621 | G98: 4.996096381 | H98: -7.926881184 | I98: 5.730727867
C99: =C98+Sheet2!B$12 -> 15.345 | D99: 10 | E99: -0.6643440367 | F99: -9.347264092 | G99: 3.553681752 | H99: -7.24322327 | I99: 4.82913987
C100: =C99+Sheet2!B$12 -> 15.504 | D100: 10 | E100: -0.3957969686 | F100: -9.793717481 | G100: 2.020667685 | H100: -6.461594947 | I100: 3.070435801
C101: =C100+Sheet2!B$12 -> 15.664 | D101: 10 | E101: -0.0871445302 | F101: -9.99048467 | G101: 0.4361376503 | H101: -6.022764413 | I101: 0.696162138
C102: =C101+Sheet2!B$12 -> 15.824 | D102: 10 | E102: 0.2303381013 | F102: -9.932549172 | G102: -1.159511508 | H102: -6.158261902 | I102: -1.824187055
C103: =C102+Sheet2!B$12 -> 15.984 | D103: 10 | E103: 0.5244810016 | F103: -9.621388026 | G103: -2.725599468 | H103: -6.797431705 | I103: -3.966698544
C104: =C103+Sheet2!B$12 -> 16.144 | D104: 10 | E104: 0.7654792179 | F104: -9.064934137 | G104: -4.222199557 | H104: -7.595781041 | I104: -5.347982568
C105: =C104+Sheet2!B$12 -> 16.304 | D105: 10 | E105: 0.9289128493 | F105: =D105*COS(C105) -> -8.277374034 | G105: =D105*SIN(C105) -> -5.611156663 | H105: -8.073415554 | I105: -5.864825165
C106: =C105+Sheet2!B$12 -> 16.464 | D106: 10 | E106: 0.99822147 | F106: -7.278786191 | G106: -6.857059981 | H106: -7.808813366 | I106: -5.723682153
C107: =C106+Sheet2!B$12 -> 16.623 | D107: 10 | E107: 0.9663821665 | F107: -6.094629133 | G107: -7.928145794 | H107: -6.611281274 | I107: -5.34865089
C108: =C107+Sheet2!B$12 -> 16.783 | D108: 10 | E108: 0.8366211562 | F108: -4.755092384 | G108: -8.797107276 | H108: -4.603813743 | I108: -5.20454202
C109: =C108+Sheet2!B$12 -> 16.943 | D109: 10 | E109: 0.6220868807 | F109: -3.294326802 | G109: -9.441790663 | H109: -2.18342979 | I109: -5.60518527
C110: =C109+Sheet2!B$12 -> 17.103 | D110: 10 | E110: 0.3445176991 | F110: -1.749573913 | G110: -9.845760058 | H110: 0.1255710893 | I110: -6.582902989
C111: =C110+Sheet2!B$12 -> 17.263 | D111: 10 | E111: 0.03203918006 | F111: -0.1602164649 | G111: -9.998716452 | H111: 1.867720792 | I111: -7.870882235
C112: =C111+Sheet2!B$12 -> 17.423 | D112: 10 | E112: -0.2836858095 | F112: 1.433225627 | G112: -9.896760293 | H112: 2.824669947 | I112: -9.005533141
C113: =C112+Sheet2!B$12 -> 17.582 | D113: 10 | E113: -0.5706654438 | F113: 2.990128308 | G113: -9.542490907 | H113: 3.089466452 | I113: -9.50847498
C114: =C113+Sheet2!B$12 -> 17.742 | D114: 10 | E114: -0.7998206105 | F114: 4.470799081 | G114: -8.944940222 | H114: 3.017787229 | I114: -9.076286628
C115: =C114+Sheet2!B$12 -> 17.902 | D115: 10 | E115: -0.9479314429 | F115: 5.837488943 | G115: -8.119342513 | H115: 3.075695073 | I115: -7.703041815
C116: =C115+Sheet2!B$12 -> 18.062 | D116: 10 | E116: -0.9999901459 | F116: 7.055354783 | G116: -7.086746002 | H116: 3.644362658 | I116: -5.687154138
C117: =C116+Sheet2!B$12 -> 18.222 | D117: 10 | E117: -0.9507217081 | F117: 8.093347685 | G117: -5.873476249 | H117: 4.859191083 | I117: -3.519712917
C118: =C117+Sheet2!B$12 -> 18.382 | D118: 10 | E118: -0.8051184085 | F118: 8.925004512 | G118: -4.510464994 | H118: 6.547141002 | I118: -1.69826364
C119: =C118+Sheet2!B$12 -> 18.541 | D119: 10 | E119: -0.5779339586 | F119: 9.529122565 | G119: -3.032461566 | H119: 8.28726741 | I119: -0.5393996959
C120: =C119+Sheet2!B$12 -> 18.701 | D120: 10 | E120: -0.2921885361 | F120: 9.89030014 | G120: -1.477146962 | H120: 9.570743549 | I120: -0.06396699464
C121: =C120+Sheet2!B$12 -> 18.861 | D121: 10 | E121: 0.02316380723 | F121: 9.999329185 | G121: 0.115826806 | H121: 9.9973171 | I121: 3.107683941e-05
C122: =C121+Sheet2!B$12 -> 19.021 | D122: 10 | E122: 0.336169005 | F122: 9.853430057 | G122: 1.705847624 | H122: 9.430705646 | I122: 0.09825996761
C123: =C122+Sheet2!B$12 -> 19.181 | D123: 10 | E123: 0.615110823 | F123: 9.456322384 | G123: 3.252378663 | H123: 8.051612609 | I123: 0.6619893955
C124: =C123+Sheet2!B$12 -> 19.341 | D124: 10 | E124: 0.8317246058 | F124: 8.81813024 | G124: 4.715991844 | H124: 6.287440912 | I124: 1.925738001
C125: =C124+Sheet2!B$12 -> 19.500 | D125: 10 | E125: 0.9640612819 | F125: 7.955124031 | G125: 6.059373041 | H125: 4.646442604 | I125: 3.822971355
C126: =C125+Sheet2!B$12 -> 19.660 | D126: 10 | E126: 0.998711422 | F126: 6.889305693 | G126: 7.248273385 | H126: 3.521746537 | I126: 6.001354496
C127: =C126+Sheet2!B$12 -> 19.820 | D127: 10 | E127: 0.9321639919 | F127: 5.647847761 | G127: 8.252382424 | H127: 3.042559378 | I127: 7.951814799
C128: =C127+Sheet2!B$12 -> 19.980 | D128: 10 | E128: 0.771162119 | F128: 4.262400619 | G128: 9.046100871 | H128: 3.03115644 | I128: 9.20068766
C129: =C128+Sheet2!B$12 -> 20.140 | D129: 10 | E129: 0.5320198233 | F129: 2.768285586 | G129: 9.60919325 | H129: 3.082448099 | I129: 9.48926722
C130: =C129+Sheet2!B$12 -> 20.300 | D130: 10 | E130: 0.2389689489 | F130: 1.20359442 | G130: 9.927303787 | H130: 2.734450902 | I130: 8.870024436
C131: =C130+Sheet2!B$12 -> 20.460 | D131: 10 | E131: =SIN(2*Q) -> -0.07829620444 | F131: -0.3917818165 | G131: 9.992322403 | H131: =(r0-r00)*COS($C131)+r00*COS((r0-r00)*$C131/r00) -> 1.662053364 | I131: =(r0-r00)*SIN($C131)-r00*SIN((r0-r00)*$C131/r00) -> 7.681634538
C132: =C131+Sheet2!B$12 -> 20.619 | D132: 10 | E132: -0.3876277491 | F132: -1.977169761 | G132: 9.802591481 | H132: -0.1827568963 | I132: 6.412787348
C133: =C132+Sheet2!B$12 -> 20.779 | D133: =D132 -> 10 | E133: -0.6576816952 | F133: -3.512150697 | G133: 9.362948119 | H133: -2.539901406 | I133: 5.508642667
C134: =C133+Sheet2!B$12 -> 20.939 | D134: 10 | E134: -0.8610939788 | F134: -4.957591009 | G134: 8.684600819 | H134: -4.932004169 | I134: 5.196402092
C135: =C134+Sheet2!B$12 -> 21.099 | D135: 10 | E135: -0.9772532117 | F135: -6.276639881 | G135: 7.784843724 | H135: -6.841407264 | I135: 5.398867811
C136: =C135+Sheet2!B$12 -> 21.259 | D136: 10 | E136: -0.994389195 | F136: -7.435668785 | G136: 6.686615715 | H136: -7.903774512 | I136: 5.770052074
C137: =C136+Sheet2!B$12 -> 21.419 | D137: 10 | E137: -0.9107655713 | F137: -8.405128826 | G137: 5.417915598 | H137: -8.042078764 | I137: 5.838639643
C138: =C137+Sheet2!B$12 -> 21.578 | D138: 10 | E138: -0.7348557669 | F138: -9.160304078 | G138: 4.011088282 | H138: -7.488295255 | I138: 5.202456179
C139: =C138+Sheet2!B$12 -> 21.738 | D139: 10 | E139: -0.484484395 | F139: -9.681941705 | G139: 2.502000166 | H139: -6.68445388 | I139: 3.69690774
C140: =C139+Sheet2!B$12 -> 21.898 | D140: 10 | E140: -0.1850211207 | F140: -9.956742802 | G140: 0.9291247368 | H140: -6.102325502 | I140: 1.470606377
C141: =C140+Sheet2!B$12 -> 22.058 | D141: 10 | E141: 0.1331899995 | F141: -9.977701445 | G141: -0.6674382882 | H141: -6.05311946 | I141: -1.061964015
C142: =C141+Sheet2!B$12 -> 22.218 | D142: 10 | E142: 0.4379052248 | F142: -9.744283304 | G142: -2.246985289 | H142: -6.562470587 | I142: -3.372332453
C143: =C142+Sheet2!B$12 -> 22.378 | D143: 10 | E143: 0.6982483285 | F143: -9.262439263 | G143: -3.769246462 | H143: -7.360154324 | I143: -5.014777136
C144: =C143+Sheet2!B$12 -> 22.537 | D144: 10 | E144: 0.8878392282 | F144: -8.544453709 | G144: -5.195412477 | H144: -7.988596948 | I144: -5.790500303
C145: =C144+Sheet2!B$12 -> 22.697 | D145: 10 | E145: 0.9874670309 | F145: -7.608631345 | G145: -6.489123905 | H145: -7.987269625 | I145: -5.814688715
C146: =C145+Sheet2!B$12 -> 22.857 | D146: 10 | E146: 0.9870366367 | F146: -6.478830519 | G146: -7.617398185 | H146: -7.080029704 | I146: -5.460260364
C147: =C146+Sheet2!B$12 -> 23.017 | D147: 10 | E147: 0.8865916566 | F147: -5.183854969 | G147: -8.551470497 | H147: -5.291263037 | I147: -5.200794041
C148: =C147+Sheet2!B$12 -> 23.177 | D148: 10 | E148: 0.6963099935 | F148: -3.756719486 | G148: -9.267527108 | H148: -2.944766017 | I148: -5.414940278
C149: =C148+Sheet2!B$12 -> 23.337 | D149: 10 | E149: 0.4354725344 | F149: -2.233808214 | G149: -9.747312494 | H149: -0.5455918843 | I149: -6.22979698
C150: =C149+Sheet2!B$12 -> 23.497 | D150: 10 | E150: 0.1305094536 | F150: -0.6539470577 | G150: -9.978594753 | H150: 1.408711484 | I150: -7.465302944
C151: =C150+Sheet2!B$12 -> 23.656 | D151: 10 | E151: -0.1876779073 | F151: 0.9425861703 | G151: -9.955477453 | H151: 2.613176949 | I151: -8.701753916
C152: =C151+Sheet2!B$12 -> 23.816 | D152: 10 | E152: -0.486848215 | F152: 2.515088609 | G152: -9.678549958 | H152: 3.063986149 | I152: -9.443861507
C153: =C152+Sheet2!B$12 -> 23.976 | D153: 10 | E153: -0.736687099 | F153: 4.023470052 | G153: -9.154872404 | H153: 3.047944514 | I153: -9.316588715
C154: =C153+Sheet2!B$12 -> 24.136 | D154: 10 | E154: -0.9118788499 | F154: 5.429275027 | G154: -8.397795704 | H154: 3.017327874 | I154: -8.215393741
C155: =C154+Sheet2!B$12 -> 24.296 | D155: 10 | E155: -0.9946716136 | F155: 6.6966632 | G155: -7.426621169 | H155: 3.399844084 | I155: -6.351475795
C156: =C155+Sheet2!B$12 -> 24.456 | D156: 10 | E156: -0.9766761535 | F156: 7.793323108 | G156: -6.266108436 | H156: 4.419073251 | I156: -4.174048115
C157: =C156+Sheet2!B$12 -> 24.615 | D157: 10 | E157: -0.8597159159 | F157: 8.691295925 | G157: -4.945844229 | H157: 5.996590916 | I157: -2.200198402
C158: =C157+Sheet2!B$12 -> 24.775 | D158: 10 | E158: -0.6556422642 | F158: 9.367688259 | G158: -3.49948806 | H158: 7.774683493 | I158: -0.8193628598
C159: =C158+Sheet2!B$12 -> 24.935 | D159: 10 | E159: -0.3851336018 | F159: 9.805255806 | G159: -1.963914095 | H159: 9.25089308 | I159: -0.1494324172
C160: =C159+Sheet2!B$12 -> 25.095 | D160: 10 | E160: -0.07560006805 | F160: 9.992842989 | G160: -0.3782710693 | H160: 9.97141291 | I160: -0.001081986286
C161: =C160+Sheet2!B$12 -> 25.255 | D161: 10 | E161: 0.2415938799 | F161: 9.92566736 | G161: 1.217015799 | H161: 9.707063477 | I161: 0.03586362605
C162: =C161+Sheet2!B$12 -> 25.415 | D162: 10 | E162: 0.5343075695 | F162: 9.605441531 | G162: 2.781275425 | H162: 8.54241491 | I162: 0.4184406584
C163: =C162+Sheet2!B$12 -> 25.574 | D163: 10 | E163: 0.7728808672 | F163: 9.040329509 | G163: 4.274627747 | H163: 6.842884267 | I163: 1.457972418
C164: =C163+Sheet2!B$12 -> 25.734 | D164: 10 | E164: 0.9331395847 | F164: 8.244738556 | G164: 5.659000455 | H164: 5.112792906 | I164: 3.185292351
C165: =C164+Sheet2!B$12 -> 25.894 | D165: 10 | E165: 0.9988450044 | F165: 7.238951888 | G165: 6.899099619 | H165: 3.80039614 | I165: 5.327307723
C166: =C165+Sheet2!B$12 -> 26.054 | D166: 10 | E166: 0.9633393182 | F166: 6.048611563 | G166: 7.963309498 | H166: 3.126798683 | I166: 7.404449266
C167: =C166+Sheet2!B$12 -> 26.214 | D167: 10 | E167: 0.8302202513 | F167: 4.704064743 | G167: 8.824498564 | H167: 3.006189132 | I167: 8.910775808
C168: =C167+Sheet2!B$12 -> 26.374 | D168: 10 | E168: 0.6129765111 | F168: 3.239590014 | G168: 9.460711207 | H168: 3.088711199 | I168: 9.505822704
C169: =C168+Sheet2!B$12 -> 26.533 | D169: 10 | E169: 0.3336210015 | F169: =D169*COS(C169) -> 1.692523469 | G169: =D169*SIN(C169) -> 9.855727487 | H169: 2.908806885 | I169: 9.142609786
C170: =C169+Sheet2!B$12 -> 26.693 | D170: 10 | E170: 0.02046029662 | F170: 0.1023068373 | G170: 9.999476652 | H170: 2.080170975 | I170: 8.081405376
C171: =C170+Sheet2!B$12 -> 26.853 | D171: 10 | E171: -0.2947736121 | F171: -1.490518059 | G171: 9.888293883 | H171: 0.4600196235 | I171: 6.783931222
C172: =C171+Sheet2!B$12 -> 27.013 | D172: 10 | E172: -0.5801386591 | F172: -3.045342901 | G172: 9.525013733 | H172: -1.782517776 | I172: 5.729878086
C173: =C172+Sheet2!B$12 -> 27.173 | D173: 10 | E173: -0.8067193352 | F173: -4.522528165 | G173: 8.918897858 | H173: -4.221206875 | I173: 5.228244235
C174: =C173+Sheet2!B$12 -> 27.333 | D174: 10 | E174: -0.9515566421 | F174: -5.88441371 | G174: 8.085398895 | H174: -6.32937114 | I174: 5.298005289
C175: =C174+Sheet2!B$12 -> 27.493 | D175: 10 | E175: -0.999974485 | F175: -7.096278907 | G175: 7.045766507 | H175: -7.676819008 | I175: 5.665186423
C176: =C175+Sheet2!B$12 -> 27.652 | D176: 10 | E176: -0.9470667738 | F176: -8.127227826 | G176: 5.826505631 | H176: -8.089524157 | I176: 5.877377054
C177: =C176+Sheet2!B$12 -> 27.812 | D177: 10 | E177: -0.7981945487 | F177: -8.950976911 | G177: 4.458700747 | H177: -7.709239678 | I177: 5.490289393
C178: =C177+Sheet2!B$12 -> 27.972 | D178: 10 | E178: -0.568442755 | F178: -9.546525068 | G178: 2.977223393 | H178: -6.929728717 | I178: 4.252462014
C179: =C178+Sheet2!B$12 -> 28.132 | D179: 10 | E179: -0.2810917147 | F179: -9.898689078 | G179: 1.419843135 | H179: -6.235001471 | I179: 2.214907917
C180: =C179+Sheet2!B$12 -> 28.292 | D180: 10 | E180: 0.03474182614 | F180: -9.998490687 | G180: -0.1737353528 | H180: -6.003620528 | I180: -0.2778716951
C181: =C180+Sheet2!B$12 -> 28.452 | D181: 10 | E181: 0.3470550423 | F181: -9.8433855 | G181: -1.76288454 | H181: -6.35649721 | I181: -2.712242646
C182: =C181+Sheet2!B$12 -> 28.611 | D182: 10 | E182: 0.6242018168 | F182: -9.437327849 | G182: -3.307089818 | H182: -7.108373912 | I182: -4.596335337
C183: =C182+Sheet2!B$12 -> 28.771 | D183: 10 | E183: 0.8380993826 | F183: -8.790669984 | G183: -4.766982404 | H183: -7.842178287 | I183: -5.642377695
C184: =C183+Sheet2!B$12 -> 28.931 | D184: 10 | E184: 0.9670738974 | F184: -7.919898139 | G184: -6.105343026 | H184: -8.076846204 | I184: -5.868739133
C185: =C184+Sheet2!B$12 -> 29.091 | D185: 10 | E185: 0.9980566135 | F185: -6.847212234 | G185: -7.288050811 | H185: -7.462237802 | I185: -5.581670277
C186: =C185+Sheet2!B$12 -> 29.251 | D186: 10 | E186: 0.92790811 | F186: -5.599959887 | G186: -8.284953184 | H186: -5.924021752 | I186: -5.244232624
C187: =C186+Sheet2!B$12 -> 29.411 | D187: 10 | E187: 0.7637364041 | F187: -4.209939209 | G187: -9.07063459 | H187: -3.701124547 | I187: -5.284454013
C188: =C187+Sheet2!B$12 -> 29.570 | D188: 10 | E188: 0.5221767095 | F188: -2.712588119 | G188: -9.625064452 | H188: -1.260744559 | I188: -5.918724432
C189: =C188+Sheet2!B$12 -> 29.730 | D189: 10 | E189: 0.2277058205 | F189: -1.146080877 | G189: -9.934107842 | H189: 0.8757355358 | I189: -7.060390345
C190: =C189+Sheet2!B$12 -> 29.890 | D190: 10 | E190: -0.08983807561 | F190: 0.449645156 | G190: -9.989885847 | H190: 2.327432606 | I190: -8.349807897
C191: =C190+Sheet2!B$12 -> 30.050 | D191: 10 | E191: -0.3982788467 | F191: 2.033907698 | G191: -9.790976431 | H191: 2.992622 | I191: -9.294089158
C192: =C191+Sheet2!B$12 -> 30.210 | D192: 10 | E192: -0.6663627633 | F192: 3.566316724 | G192: -9.342450697 | H192: 3.07689605 | I192: -9.461394697
C193: =C192+Sheet2!B$12 -> 30.370 | D193: 10 | E193: -0.8669253809 | F193: 5.00780419 | G193: -8.655743596 | H193: 3.000004888 | I193: -8.653028894
C194: =C193+Sheet2!B$12 -> 30.529 | D194: 10 | E194: -0.9796440628 | F194: 6.321620054 | G194: -7.748362401 | H194: 3.218486084 | I194: -6.985314313
C195: =C194+Sheet2!B$12 -> 30.689 | D195: 10 | E195: =SIN(2*Q) -> -0.9930972345 | F195: 7.474269201 | G195: -6.643440367 | H195: =(r0-r00)*COS($C195)+r00*COS((r0-r00)*$C195/r00) -> 4.034446893 | I195: =(r0-r00)*SIN($C195)-r00*SIN((r0-r00)*$C195/r00) -> -4.848814898
C196: =C195+Sheet2!B$12 -> 30.849 | D196: 10 | E196: -0.9059217112 | F196: 8.436365386 | G196: -5.369146959 | H196: 5.466315722 | I196: -2.760884699
C197: =C196+Sheet2!B$12 -> 31.009 | D197: =D196 -> 10 | E197: -0.7269508265 | F197: 9.183380421 | G197: -3.957969686 | H197: 7.23287432 | I197: -1.169617695
C198: =C197+Sheet2!B$12 -> 31.169 | D198: 10 | E198: -0.4743193672 | F198: 9.696269511 | G198: -2.445885846 | H198: 8.85710016 | I198: -0.286435053
C199: =C198+Sheet2!B$12 -> 31.329 | D199: 10 | E199: -0.1736260089 | F199: 9.96195679 | G199: -0.871445302 | H199: 9.848981468 | I199: -0.01320056836
C200: =C199+Sheet2!B$12 -> 31.489 | D200: 10 | E200: 0.1446605499 | F200: 9.973668687 | G200: 0.7252123285 | H200: 9.895228251 | I200: 0.007614203072
C201: =C200+Sheet2!B$12 -> 31.648 | D201: 10 | E201: 0.4482889242 | F201: 9.731106613 | G201: 2.303381013 | H201: 8.981033452 | I201: 0.2398231634
... 803 more rows

Sheet Sheet3
